fUST/lending_fUST_20260307
["ID","MTS","AMOUNT","RATE_DAILY","PERIOD"]
[407804541,1772812994315,-1184.20120645,2.296e-05,2]
[407804542,1772812994344,-1184.20120645,2.319e-05,2]
[407804543,1772812994373,-1184.20120645,2.342e-05,2]
[407804544,1772812994402,-279.7874025,2.378e-05,2]
[407804545,1772812994428,-300.0,2.499e-05,2]
[407804546,1772812994454,-300.0,2.499e-05,2]
[407804547,1772812994482,-1200.0,2.499e-05,2]
[407804548,1772812994509,-300.0,2.499e-05,2]
[407804549,1772812994540,-2572.27266689,2.5e-05,3]
[407804550,1772812994568,-6147.58152951,2.5e-05,3]
[407804551,1772812994598,-5543.85500336,2.5e-05,3]
[407804552,1772812994626,-6377.37982893,2.5e-05,3]
[407804553,1772812994654,-6751.30805574,2.5e-05,3]
[407804554,1772812994680,-4355.04157324,2.59e-05,2]
[407804555,1772812994707,-500.0,2.653e-05,2]
[407804556,1772812994733,-500.0,2.653e-05,2]
[407804557,1772812994760,-500.0,2.653e-05,2]
[407804558,1772812994785,-500.0,2.653e-05,2]
[407804559,1772812994811,-500.0,2.653e-05,2]
[407804560,1772812994837,-500.0,2.653e-05,2]
[407804561,1772812994863,-500.0,2.653e-05,2]
[407804562,1772812994891,-500.0,2.653e-05,2]
[407804563,1772812994917,-500.0,2.653e-05,2]
[407804564,1772812994943,-500.0,2.653e-05,2]
[407804565,1772812994968,-500.0,2.653e-05,2]
[407804566,1772812994996,-500.0,2.653e-05,2]
[407804567,1772812995023,-500.0,2.653e-05,2]
[407804568,1772812995049,-500.0,2.653e-05,2]
[407804569,1772812995083,-1155320.17032048,2.672e-05,2]
[407804603,1772813284413,179.99,3.8e-06,2]
[407804648,1772813432793,-948.33945034,2.441e-05,2]
[407804649,1772813432812,-2848.40848297,2.441e-05,2]
[407804650,1772813432824,-410.71337545,2.441e-05,2]
[407804651,1772813432834,-198.65740202,2.441e-05,2]
[407804652,1772813432844,-195.82010376,2.454e-05,2]
[407804653,1772813432855,-78.37155069,2.454e-05,2]
[407804654,1772813432864,-597.05209643,2.466e-05,2]
[407804655,1772813432875,-310.80974519,2.466e-05,2]
[407804656,1772813432887,-4092.13815838,2.466e-05,2]
[407804657,1772813432896,-5000.0,2.491e-05,2]
[407804658,1772813432905,-300.0,2.604e-05,2]
[407804659,1772813432914,-500.0,2.653e-05,2]
[407804660,1772813432925,-500.0,2.653e-05,2]
[407804661,1772813432934,-448.44921325,2.653e-05,2]
[407804734,1772813438768,-755.58031497,2.626e-05,2]
[407804915,1772813440815,-4244.41968503,2.626e-05,2]
[407804917,1772813440825,-494.2590022,2.645e-05,2]
[407804920,1772813440837,-735.7409978,2.645e-05,2]
[407804921,1772813440847,-51.55078675,2.653e-05,2]
[407804923,1772813440856,-500.0,2.653e-05,2]
[407804925,1772813440866,-12840.65551084,2.672e-05,2]
[407804928,1772813440877,-853.05390387,2.672e-05,2]
[407804930,1772813440888,-1513.08956569,2.672e-05,2]
[407804933,1772813440899,-933.89825279,2.672e-05,2]
[407804937,1772813440911,-308423.40807567,2.672e-05,2]
[407805180,1772813443752,-1277.19886918,2.672e-05,2]
[407805181,1772813443765,-4614.4999995,2.672e-05,2]
[407805210,1772813446523,-6936.21890259,2.672e-05,2]
[407805211,1772813446647,-5583.3045271,2.672e-05,2]
[407805212,1772813446659,-6862.69045025,2.672e-05,2]
[407805213,1772813446672,-12452.35671233,2.672e-05,2]
[407805269,1772813724930,161.070281,1.666e-05,2]
[407805356,1772814280302,357.83,5.886e-05,30]
[407805357,1772814280662,715.67,6.245e-05,30]
[407805358,1772814281039,1073.5,6.605e-05,30]
[407805359,1772814281429,1431.34,6.964e-05,30]
[407805360,1772814281813,1789.17,7.323e-05,30]
[407805361,1772814282261,2147.01,7.682e-05,30]
[407805362,1772814282641,2504.84,8.042e-05,30]
[407805363,1772814283294,2862.68,8.401e-05,30]
[407805364,1772814283674,3220.51,8.76e-05,30]
[407805374,1772814339961,152.89,4.289e-05,30]
[407805375,1772814340348,305.79,4.551e-05,30]
[407805376,1772814341401,458.68,4.812e-05,30]
[407805377,1772814341432,611.57,5.074e-05,30]
[407805378,1772814341508,764.46,5.336e-05,30]
[407805379,1772814341909,917.36,5.598e-05,30]
[407805380,1772814342280,1070.25,5.859e-05,30]
[407805381,1772814342669,1223.14,6.121e-05,30]
[407805382,1772814343063,1376.04,6.383e-05,30]
[407805383,1772814343498,1528.93,6.645e-05,30]
[407805384,1772814430346,-2000.0,2.276e-05,2]
[407805385,1772814432708,-2000.0,2.276e-05,2]
[407805386,1772814433151,-1000.0,2.276e-05,2]
[407805387,1772814433173,-1000.0,2.299e-05,2]
[407805388,1772814433594,-2000.0,2.299e-05,2]
[407805389,1772814434031,-2000.0,2.299e-05,2]
[407805390,1772814434394,-2000.0,2.322e-05,2]
[407805391,1772814434716,-2000.0,2.322e-05,2]
[407805392,1772814435163,-274.08947309,2.322e-05,2]
[407805393,1772814435187,-268.70782136,2.334e-05,2]
[407805394,1772814435210,-300.0,2.499e-05,2]
[407805395,1772814435239,-289.86640764,2.5e-05,3]
[407805396,1772814435265,-508.94103437,2.5e-05,3]
[407805397,1772814435289,-358.39526354,2.5e-05,3]
[407805398,1772814435637,-195.27725065,2.5e-05,3]
[407805399,1772814435663,-573.62761826,2.5e-05,3]
[407805400,1772814435685,-500.0,2.533e-05,2]
[407805401,1772814435708,-500.0,2.533e-05,2]
[407805402,1772814435733,-231.09513109,2.533e-05,2]
[407805403,1772814436115,-152.57515614,2.533e-05,2]
[407805404,1772814436136,-500.0,2.533e-05,2]
[407805405,1772814436158,-500.0,2.533e-05,2]
[407805406,1772814436179,-500.0,2.533e-05,2]
[407805407,1772814436200,-347.42484386,2.533e-05,2]
[407805408,1772814436653,-152.57515614,2.533e-05,2]
[407805409,1772814436675,-406.6880175,2.533e-05,2]
[407805410,1772814436695,-500.0,2.533e-05,2]
[407805411,1772814436716,-500.0,2.533e-05,2]
[407805412,1772814436736,-440.73682636,2.533e-05,2]
[407805413,1772814436949,-59.26317364,2.533e-05,2]
[407805414,1772814436970,-500.0,2.533e-05,2]
[407805415,1772814436990,-500.0,2.533e-05,2]
[407805416,1772814437011,-500.0,2.533e-05,2]
[407805417,1772814437034,-440.73682636,2.553e-05,2]
[407805418,1772814437339,-2000.0,2.553e-05,2]
[407805419,1772814438033,-2000.0,2.553e-05,2]
[407805420,1772814438134,-2000.0,2.553e-05,2]
[407805421,1772814438516,-2000.0,2.553e-05,2]
[407805422,1772814438987,-2000.0,2.553e-05,2]
[407805423,1772814439321,-2000.0,2.553e-05,2]
[407805424,1772814439796,-2000.0,2.553e-05,2]
[407805425,1772814440287,-2000.0,2.553e-05,2]
[407805426,1772814441342,-2000.0,2.553e-05,2]
[407805427,1772814441377,-2000.0,2.553e-05,2]
[407805428,1772814441457,-2000.0,2.553e-05,2]
[407805429,1772814441761,-2000.0,2.553e-05,2]
[407805430,1772814443074,-2000.0,2.553e-05,2]
[407805431,1772814443475,-2000.0,2.553e-05,2]
[407805432,1772814443946,-2000.0,2.527e-05,2]
[407805433,1772814444398,-2000.0,2.527e-05,2]
[407805434,1772814444914,-434.77655716,2.527e-05,2]
[407805435,1772814444940,-1565.22344284,2.553e-05,2]
[407805436,1772814445541,-2000.0,2.553e-05,2]
[407805437,1772814445661,-2000.0,2.553e-05,2]
[407805438,1772814446138,-2000.0,2.553e-05,2]
[407805439,1772814446587,-2000.0,2.553e-05,2]
[407805440,1772814446908,-2000.0,2.553e-05,2]
[407805441,1772814447464,-2000.0,2.553e-05,2]
[407805442,1772814447915,-2000.0,2.553e-05,2]
[407805443,1772814448373,-2000.0,2.553e-05,2]
[407805444,1772814448978,-2000.0,2.553e-05,2]
[407805445,1772814449196,-2000.0,2.553e-05,2]
[407805446,1772814449526,-2000.0,2.553e-05,2]
[407805447,1772814449977,-2000.0,2.553e-05,2]
[407805448,1772814450311,-2000.0,2.553e-05,2]
[407805449,1772814450795,-2000.0,2.553e-05,2]
[407805450,1772814451261,-2000.0,2.553e-05,2]
[407805451,1772814452536,-2000.0,2.527e-05,2]
[407805452,1772814452582,-2000.0,2.527e-05,2]
[407805453,1772814452619,-1000.0,2.527e-05,2]
[407805454,1772814452647,-1000.0,2.553e-05,2]
[407805455,1772814452961,-2000.0,2.553e-05,2]
[407805456,1772814455651,-2000.0,2.553e-05,2]
[407805457,1772814456085,-2000.0,2.553e-05,2]
[407805458,1772814456401,-2000.0,2.553e-05,2]
[407805459,1772814456834,-2000.0,2.553e-05,2]
[407805460,1772814457156,-2000.0,2.553e-05,2]
[407805461,1772814457620,-2000.0,2.553e-05,2]
[407805462,1772814458075,-2000.0,2.553e-05,2]
[407805463,1772814458543,-2000.0,2.553e-05,2]
[407805464,1772814459184,-2000.0,2.553e-05,2]
[407805465,1772814460496,-2000.0,2.553e-05,2]
[407805466,1772814460872,-2000.0,2.553e-05,2]
[407805467,1772814461356,-2000.0,2.553e-05,2]
[407805468,1772814461452,-2000.0,2.553e-05,2]
[407805469,1772814461805,-2000.0,2.553e-05,2]
[407805470,1772814462295,-2000.0,2.553e-05,2]
[407805471,1772814463759,-2000.0,2.553e-05,2]
[407805472,1772814463801,-2000.0,2.553e-05,2]
[407805473,1772814463895,-2000.0,2.553e-05,2]
[407805474,1772814464372,-2000.0,2.553e-05,2]
[407805475,1772814464861,-2000.0,2.553e-05,2]
[407805476,1772814465314,-2000.0,2.553e-05,2]
[407805477,1772814468054,-2000.0,2.553e-05,2]
[407805478,1772814468515,-2000.0,2.553e-05,2]
[407805479,1772814468738,-2000.0,2.553e-05,2]
[407805480,1772814469234,-2000.0,2.553e-05,2]
[407805481,1772814469691,-2000.0,2.553e-05,2]
[407805482,1772814470001,-2000.0,2.553e-05,2]
[407805483,1772814470499,-2000.0,2.553e-05,2]
[407805484,1772814470944,-2000.0,2.553e-05,2]
[407805485,1772814471395,-2000.0,2.553e-05,2]
[407805486,1772814471843,-2000.0,2.553e-05,2]
[407805487,1772814472206,-2000.0,2.553e-05,2]
[407805488,1772814472673,-2000.0,2.553e-05,2]
[407805489,1772814473146,-2000.0,2.553e-05,2]
[407805490,1772814473588,-2000.0,2.553e-05,2]
[407805491,1772814475056,-2000.0,2.553e-05,2]
[407805492,1772814475099,-2000.0,2.553e-05,2]
[407805493,1772814475128,-2000.0,2.553e-05,2]
[407805494,1772814475161,-2000.0,2.553e-05,2]
[407805495,1772814475501,-2000.0,2.553e-05,2]
[407805496,1772814480421,-2000.0,2.553e-05,2]
[407805497,1772814480828,-2000.0,2.553e-05,2]
[407805498,1772814481293,-2000.0,2.553e-05,2]
[407805499,1772814481728,-2000.0,2.553e-05,2]
[407805500,1772814483231,-2000.0,2.553e-05,2]
[407805501,1772814483784,-300.0,2.552e-05,2]
[407805502,1772814483811,-1700.0,2.553e-05,2]
[407805503,1772814484378,-2000.0,2.553e-05,2]
[407805504,1772814484825,-2000.0,2.553e-05,2]
[407805505,1772814485846,-2000.0,2.553e-05,2]
[407805506,1772814487281,-500.0,2.533e-05,2]
[407805507,1772814487302,-500.0,2.533e-05,2]
[407805508,1772814487327,-1000.0,2.553e-05,2]
[407805509,1772814488823,-2000.0,2.553e-05,2]
[407805510,1772814493311,-500.0,2.533e-05,2]
[407805511,1772814493338,-100.0,2.553e-05,2]
[407805512,1772814522904,-4000.0,2.527e-05,2]
[407805513,1772814524792,-1000.0,2.527e-05,2]
[407805514,1772814524816,-151.3946261,2.527e-05,2]
[407807423,1772814632490,-151.0,2.553e-05,2]
[407807424,1772814632500,-151.0,2.553e-05,2]
[407807425,1772814632510,-151.0,2.553e-05,2]
[407807426,1772814632519,-60.48112484,2.553e-05,2]
[407807428,1772814632535,-90.51887516,2.553e-05,2]
[407807429,1772814632544,-151.0,2.553e-05,2]
[407807430,1772814632554,-59.06774939,2.553e-05,2]
[407807431,1772814632565,-176.73141557,2.553e-05,2]
[407807432,1772814632574,-216.12860524,2.593e-05,2]
[407807433,1772814632583,-3632.1094741,2.619e-05,2]
[407807535,1772814638680,-435.42165357,2.619e-05,2]
[407807536,1772814638691,-323.67651381,2.619e-05,2]
[407807537,1772814638704,-608.79235852,2.619e-05,2]
[407807539,1772814638715,-2611.02447509,2.645e-05,2]
[407807540,1772814638724,-300.0,2.671e-05,2]
[407807541,1772814638734,-300.0,2.671e-05,2]
[407807542,1772814638743,-5109.19888182,2.772e-05,2]
[407807543,1772814638758,-986.95716686,2.772e-05,2]
[407807544,1772814638769,-44228.21532612,2.772e-05,2]
[407807546,1772814638779,-420.0,2.938e-05,2]
[407807547,1772814638789,-5000.0,3e-05,2]
[407807548,1772814638798,-198.6653603,3.071e-05,2]
[407807549,1772814638807,-250.0,3.071e-05,2]
[407807550,1772814638817,-445.202766,3.071e-05,2]
[407807551,1772814638827,-500.0,3.071e-05,2]
[407807552,1772814638836,-500.0,3.071e-05,2]
[407807554,1772814638845,-162.380719,3.071e-05,2]
[407807555,1772814638856,-250.0,3.071e-05,2]
[407807556,1772814638865,-500.0,3.071e-05,2]
[407807557,1772814638875,-250.0,3.071e-05,2]
[407807558,1772814638884,-500.0,3.071e-05,2]
[407807559,1772814638894,-500.0,3.071e-05,2]
[407807560,1772814638903,-250.0,3.071e-05,2]
[407807562,1772814638912,-500.0,3.071e-05,2]
[407807563,1772814638921,-250.0,3.071e-05,2]
[407807564,1772814638931,-500.0,3.071e-05,2]
[407807565,1772814638940,-500.0,3.071e-05,2]
[407807566,1772814638949,-250.0,3.071e-05,2]
[407807567,1772814638959,-500.0,3.071e-05,2]
[407807569,1772814638968,-162.380719,3.071e-05,2]
[407807570,1772814638977,-500.0,3.071e-05,2]
[407807571,1772814638986,-250.0,3.071e-05,2]
[407807572,1772814638996,-1957.856,3.071e-05,2]
[407807573,1772814639005,-168.3888056,3.071e-05,2]
[407807574,1772814639014,-500.0,3.071e-05,2]
[407807575,1772814639023,-500.0,3.071e-05,2]
[407807577,1772814639034,-271.34409086,3.071e-05,2]
[407807578,1772814639044,-500.0,3.071e-05,2]
[407807579,1772814639053,-174.61919141,3.071e-05,2]
[407807580,1772814639063,-500.0,3.071e-05,2]
[407807581,1772814639073,-181.08010149,3.071e-05,2]
[407807582,1772814639082,-500.0,3.071e-05,2]
[407807583,1772814639091,-187.78006525,3.071e-05,2]
[407807585,1772814639100,-500.0,3.071e-05,2]
[407807586,1772814639109,-194.72792766,3.071e-05,2]
[407807587,1772814639121,-500.0,3.071e-05,2]
[407807588,1772814639130,-500.0,3.071e-05,2]
[407807589,1772814639140,-201.93286099,3.071e-05,2]
[407807590,1772814639149,-500.0,3.071e-05,2]
[407807592,1772814639159,-156.587,3.071e-05,2]
[407807593,1772814639169,-500.0,3.071e-05,2]
[407807594,1772814639178,-209.40437684,3.071e-05,2]
[407807595,1772814639187,-500.0,3.071e-05,2]
[407807596,1772814639196,-500.0,3.071e-05,2]
[407807597,1772814639205,-217.15233878,3.071e-05,2]
[407807598,1772814639214,-500.0,3.071e-05,2]
[407807600,1772814639224,-225.18697532,3.071e-05,2]
[407807601,1772814639233,-500.0,3.071e-05,2]
[407807602,1772814639242,-500.0,3.071e-05,2]
[407807603,1772814639251,-233.51889341,3.071e-05,2]
[407807604,1772814639261,-500.0,3.071e-05,2]
[407807605,1772814639270,-500.0,3.071e-05,2]
[407807606,1772814639280,-242.15909246,3.071e-05,2]
[407807608,1772814639289,-500.0,3.071e-05,2]
[407807609,1772814639298,-500.0,3.071e-05,2]
[407807610,1772814639307,-151.0,3.071e-05,2]
[407807611,1772814639316,-251.11897888,3.071e-05,2]
[407807612,1772814639326,-500.0,3.071e-05,2]
[407807613,1772814639335,-260.4103811,3.071e-05,2]
[407807614,1772814639345,-500.0,3.071e-05,2]
[407807616,1772814639354,-500.0,3.071e-05,2]
[407807617,1772814639363,-270.0455652,3.071e-05,2]
[407807618,1772814639373,-280.03725112,3.071e-05,2]
[407807619,1772814639382,-290.39862941,3.071e-05,2]
[407807620,1772814639391,-500.0,3.071e-05,2]
[407807621,1772814639401,-500.0,3.071e-05,2]
[407807622,1772814639411,-500.0,3.071e-05,2]
[407807624,1772814639420,-500.0,3.071e-05,2]
[407807625,1772814639430,-301.1433787,3.071e-05,2]
[407807626,1772814639439,-250.0,3.071e-05,2]
[407807627,1772814639448,-250.0,3.071e-05,2]
[407807628,1772814639458,-250.0,3.071e-05,2]
[407807629,1772814639468,-250.0,3.071e-05,2]
[407807631,1772814639478,-250.0,3.071e-05,2]
[407807632,1772814639488,-250.0,3.071e-05,2]
[407807633,1772814639497,-250.0,3.071e-05,2]
[407807634,1772814639506,-250.0,3.071e-05,2]
[407807635,1772814639516,-250.0,3.071e-05,2]
[407807636,1772814639526,-250.0,3.071e-05,2]
[407807637,1772814639536,-250.0,3.071e-05,2]
[407807639,1772814639545,-2150.738,3.071e-05,2]
[407807640,1772814639555,-162.380719,3.071e-05,2]
[407807641,1772814639564,-537.6845,3.071e-05,2]
[407807642,1772814639573,-1067.71336261,3.081e-05,2]
[407807643,1772814639583,-1000.0,3.081e-05,2]
[407807644,1772814639592,-1000.0,3.081e-05,2]
[407807645,1772814639601,-1000.0,3.081e-05,2]
[407807647,1772814639610,-1000.0,3.081e-05,2]
[407807648,1772814639619,-1000.0,3.081e-05,2]
[407807649,1772814639630,-2030.296672,3.126e-05,2]
[407807650,1772814639642,-320.42387208,3.181e-05,2]
[407807651,1772814639651,-587.0,3.232e-05,2]
[407807652,1772814639660,-157.737,3.238e-05,2]
[407807654,1772814639670,-300.0,3.337e-05,2]
[407807655,1772814639681,-300.0,3.337e-05,2]
[407807656,1772814639691,-300.0,3.337e-05,2]
[407807657,1772814639700,-300.0,3.337e-05,2]
[407807658,1772814639711,-300.0,3.337e-05,2]
[407807659,1772814639720,-300.0,3.337e-05,2]
[407807661,1772814639731,-300.0,3.337e-05,2]
[407807662,1772814639741,-300.0,3.337e-05,2]
[407807663,1772814639750,-823.0,3.555e-05,2]
[407807664,1772814639760,-638.0,3.562e-05,2]
[407807665,1772814639769,-2189.0,3.562e-05,2]
[407807666,1772814639779,-452.232,3.562e-05,2]
[407807667,1772814639788,-731.0,3.562e-05,2]
[407807669,1772814639797,-461.67526834,3.619e-05,2]
[407807670,1772814639807,-2230.315306,3.619e-05,2]
[407807671,1772814639818,-168.3888056,3.619e-05,2]
[407807672,1772814639827,-557.5788265,3.619e-05,2]
[407807673,1772814639837,-1500.0,3.628e-05,2]
[407807674,1772814639847,-1500.0,3.628e-05,2]
[407807675,1772814639856,-1500.0,3.628e-05,2]
[407807677,1772814639866,-1500.0,3.628e-05,2]
[407807678,1772814639876,-1500.0,3.628e-05,2]
[407807679,1772814639886,-6391.99610309,3.663e-05,2]
[407807680,1772814639895,-150.495,3.724e-05,2]
[407807681,1772814639905,-150.572,3.724e-05,2]
[407807682,1772814639916,-250.0,3.724e-05,2]
[407807683,1772814639926,-151.934,3.724e-05,2]
[407807685,1772814639935,-150.303,3.724e-05,2]
[407807686,1772814639945,-600.0,3.735e-05,2]
[407807687,1772814639955,-420.01,3.886e-05,2]
[407807688,1772814639965,-864.0,3.911e-05,2]
[407807689,1772814639974,-500.0,3.973e-05,2]
[407807690,1772814639983,-500.0,3.973e-05,2]
[407807691,1772814639993,-500.0,3.973e-05,2]
[407807693,1772814640002,-500.0,3.973e-05,2]
[407807694,1772814640011,-500.0,3.973e-05,2]
[407807695,1772814640021,-500.0,3.973e-05,2]
[407807696,1772814640030,-500.0,3.973e-05,2]
[407807697,1772814640040,-500.0,3.973e-05,2]
[407807698,1772814640050,-1523.48696014,3.986e-05,2]
[407807699,1772814640060,-750922.81751833,4e-05,2]
[407807701,1772814640072,-35595.45169643,4e-05,2]
[407807721,1772814641228,-7674.03464176,3.96e-05,2]
[407807722,1772814641238,-27138.34287022,4e-05,2]
[407807724,1772814641249,-1075.08886253,4e-05,2]
[407807746,1772814642328,-205.78000596,4e-05,2]
[407807777,1772814643922,-11910.60790869,4e-05,2]
[407807814,1772814646659,-5000.0,3.92e-05,2]
[407807815,1772814646669,-7144.80936667,4e-05,2]
[407832174,1772815392696,-2000.0,2.436e-05,2]
[407832175,1772815394183,-2000.0,2.436e-05,2]
[407832176,1772815395257,-1000.0,2.436e-05,2]
[407832177,1772815395279,-263.33366494,2.449e-05,2]
[407832178,1772815395302,-300.0,2.46e-05,2]
[407832179,1772815395323,-436.66633506,2.461e-05,2]
[407832180,1772815395692,-2000.0,2.461e-05,2]
[407832181,1772815396035,-2000.0,2.461e-05,2]
[407832182,1772815396460,-563.33366494,2.461e-05,2]
[407832183,1772815396483,-1200.0,2.499e-05,2]
[407832184,1772815396507,-236.66633506,2.5e-05,3]
[407832185,1772815396764,-2000.0,2.5e-05,3]
[407832186,1772815397219,-504.23157272,2.5e-05,3]
[407832187,1772815397242,-1495.76842728,2.5e-05,3]
[407832188,1772815397654,-2000.0,2.5e-05,3]
[407832189,1772815398002,-2000.0,2.5e-05,3]
[407832190,1772815398349,-1664.47415541,2.5e-05,3]
[407832191,1772815398371,-335.52584459,2.5e-05,3]
[407832192,1772815398676,-2000.0,2.5e-05,3]
[407832193,1772815399974,-2000.0,2.5e-05,3]
[407832194,1772815400476,-1536.18465555,2.5e-05,3]
[407832195,1772815400500,-463.81534445,2.5e-05,3]
[407832196,1772815400650,-2000.0,2.5e-05,3]
[407832197,1772815402779,-2000.0,2.5e-05,3]
[407832198,1772815403173,-2000.0,2.5e-05,3]
[407832199,1772815411272,-52.16119692,2.5e-05,3]
[407832200,1772815411298,-747.83880308,2.5e-05,3]
[407832204,1772815447719,-2771.2670876,2.477e-05,2]
[407832205,1772815447741,-300.0,2.499e-05,2]
[407832206,1772815447766,-5128.7329124,2.5e-05,3]
[407832207,1772815474076,10000.0,9e-05,30]
[407832208,1772815491903,1108.03,9e-05,30]
[407832209,1772815494156,-274.07792149,2.477e-05,2]
[407832210,1772815494181,-923.44862392,2.5e-05,3]
[407832211,1772815494205,-153.26587234,2.5e-05,3]
[407832212,1772815494228,-4649.20758225,2.502e-05,2]
[407832238,1772815724083,1452.8321488,1.538e-05,2]
[407832277,1772815831637,-964.58946805,2.403e-05,2]
[407832284,1772815831692,-266.90494877,2.403e-05,2]
[407832337,1772815832840,-3768.50558318,2.403e-05,2]
[407832338,1772815832850,-1200.0,2.426e-05,2]
[407832339,1772815832860,-5000.0,2.427e-05,2]
[407832340,1772815832870,-300.0,2.463e-05,2]
[407832341,1772815832880,-300.0,2.463e-05,2]
[407832342,1772815832890,-264.13867772,2.465e-05,2]
[407832343,1772815832900,-500.0,2.553e-05,2]
[407832344,1772815832910,-341.97973795,2.553e-05,2]
[407832345,1772815832922,-158.02026205,2.553e-05,2]
[407832346,1772815832931,-500.0,2.553e-05,2]
[407832347,1772815832940,-292.40663964,2.553e-05,2]
[407832348,1772815832954,-207.59336036,2.553e-05,2]
[407832349,1772815832967,-500.0,2.553e-05,2]
[407832350,1772815832977,-500.0,2.553e-05,2]
[407832351,1772815832988,-615.12253755,2.553e-05,2]
[407832352,1772815832997,-500.0,2.553e-05,2]
[407832353,1772815833006,-500.0,2.553e-05,2]
[407832354,1772815833016,-500.0,2.553e-05,2]
[407832355,1772815833030,-500.0,2.553e-05,2]
[407832356,1772815833040,-208.99093517,2.572e-05,2]
[407832357,1772815833051,-1101.27970208,2.572e-05,2]
[407832366,1772815837721,-96488.55045941,2.572e-05,2]
[407832442,1772815840420,-132.50678652,2.572e-05,2]
[407832771,1772815843989,-5000.0,2.546e-05,2]
[407832773,1772815844000,-34118.63818075,2.572e-05,2]
[407832775,1772815844012,-1580.71166212,2.572e-05,2]
[407832778,1772815844023,-15967.00849081,2.572e-05,2]
[407832827,1772815845646,-258.58443364,2.572e-05,2]
[407832833,1772815845699,-21153.60152014,2.572e-05,2]
[407832836,1772815845710,-15551.80507309,2.572e-05,2]
[407832838,1772815845721,-1379194.03037301,2.572e-05,2]
[407832840,1772815845732,-1617.41432246,2.572e-05,2]
[407832867,1772815996941,3000.0,9e-05,30]
[407832884,1772816424601,-1405.82866165,2.398e-05,2]
[407832903,1772816674165,162.489025,1.665e-05,2]
[407832911,1772816881364,209.77,3.8e-06,2]
[407832961,1772817031745,-324.47130679,2.234e-05,2]
[407832993,1772817032039,-28.33794756,2.234e-05,2]
[407832996,1772817032062,-4647.19074565,2.234e-05,2]
[407832999,1772817032076,-5000.0,2.257e-05,2]
[407833001,1772817032090,-1200.0,2.279e-05,2]
[407833003,1772817032103,-300.0,2.29e-05,2]
[407833006,1772817032116,-267.64734206,2.292e-05,2]
[407833008,1772817032129,-422.88070322,2.507e-05,2]
[407833011,1772817032146,-1257.11929678,2.507e-05,2]
[407833013,1772817032159,-420.0,2.52e-05,2]
[407833016,1772817032172,-160.806891,2.566e-05,2]
[407833018,1772817032185,-5101.56166919,2.569e-05,2]
[407833164,1772817039513,-1086.0,2.569e-05,2]
[407833170,1772817043014,-700.0,2.543e-05,2]
[407833171,1772817043069,-139.06709249,2.543e-05,2]
[407833172,1772817043079,-2434.69290765,2.569e-05,2]
[407833173,1772817043091,-337.72830889,2.569e-05,2]
[407833174,1772817043105,-1033.0,2.569e-05,2]
[407833175,1772817043115,-3333.0,2.569e-05,2]
[407833186,1772817046055,-1107.38181887,2.569e-05,2]
[407833187,1772817046065,-34.97989953,2.569e-05,2]
[407833188,1772817046077,-1220.11479897,2.569e-05,2]
[407833189,1772817046086,-160.806891,2.675e-05,2]
[407833190,1772817046095,-2350.26666878,2.7e-05,2]
[407833191,1772817046104,-5667.84696964,2.7e-05,2]
[407833192,1772817046113,-3209.77823417,2.7e-05,2]
[407833193,1772817046124,-2612.48290624,2.7e-05,2]
[407833194,1772817046134,-6218.31496903,2.7e-05,2]
[407833195,1772817046143,-5117.37897035,2.7e-05,2]
[407833196,1772817046153,-587.0,2.772e-05,2]
[407833197,1772817046162,-160.806891,2.783e-05,2]
[407833198,1772817046171,-500.0,2.813e-05,2]
[407833199,1772817046180,-500.0,2.813e-05,2]
[407833200,1772817046189,-500.0,2.813e-05,2]
[407833201,1772817046199,-500.0,2.813e-05,2]
[407833202,1772817046210,-1255.0946985,2.834e-05,2]
[407833203,1772817046219,-160.806891,2.891e-05,2]
[407833204,1772817046228,-3220.518978,2.899e-05,2]
[407833205,1772817046238,-325.75904333,2.944e-05,2]
[407833206,1772817046247,-718.5949153,2.973e-05,2]
[407833207,1772817046256,-160.806891,2.999e-05,2]
[407833208,1772817046265,-300.0,3.049e-05,2]
[407833209,1772817046275,-586.90498254,3.098e-05,2]
[407833210,1772817046290,-301.80929101,3.098e-05,2]
[407833219,1772817630857,704.8,2e-05,2]
[407833239,1772817761254,798.4,2e-05,2]
[407833254,1772818061668,871.2,2e-05,2]
[407833256,1772818121559,901.6,2e-05,2]
[407833257,1772818128270,568.3,2e-05,2]
[407833261,1772818210650,5000.0,2e-05,2]
[407833262,1772818224504,-2114.4,2.01e-05,2]